Workbook

Sheet Formularze 1
B4: Imię | C4: Nazwisko | D4: Miasto | E4: Ilość klientów | F4: Sprzedaż
B5: Witold | C5: Tomeszewski | D5: Poznań | E5: 116 | F5: 1091244
B6: Aleksander | C6: Walewski | D6: Kraków | E6: 125 | F6: 1056233
B7: Antoni | C7: Grzybowki | D7: Łódź | E7: 35 | F7: 1054341
B8: Witold | C8: Kurowski | D8: Gdynia | E8: 64 | F8: 1051350
B9: Michał | C9: Kaczyński | D9: Szczecin | E9: 68 | F9: 1050736
B10: Adam | C10: Kosowski | D10: Gdańsk | E10: 58 | F10: 1024183
B11: Wacław | C11: Borkowski | D11: Kraków | E11: 80 | F11: 1022010
B12: Wiesiu | C12: Kaczyński | D12: Łódź | E12: 103 | F12: 1021001
B13: Paweł | C13: Kurowski | D13: Warszawa | E13: 114 | F13: 1019980
B14: Antoni | C14: Sosnowski | D14: Kraków | E14: 32 | F14: 988596
B15: Łukasz | C15: Rogowski | D15: Warszawa | E15: 86 | F15: 987345
B16: Michał | C16: Szyperski | D16: Olsztyn | E16: 42 | F16: 980514
B17: Wiesiu | C17: Grzybowki | D17: Poznań | E17: 58 | F17: 894569
B18: Krzysztof | C18: Szyperski | D18: Warszawa | E18: 75 | F18: 882140
B19: Krzysztof | C19: Kowalski | D19: Gdańsk | E19: 96 | F19: 823468
B20: Tomasz | C20: Wojski | D20: Gdańsk | E20: 111 | F20: 809054
B21: Marcin | C21: Tomeszewski | D21: Łódź | E21: 47 | F21: 803564
B22: Przemysław | C22: Nowakowski | D22: Gdańsk | E22: 53 | F22: 786293
B23: Adam | C23: Kowalski | D23: Warszawa | E23: 80 | F23: 776146
B24: Olgierd | C24: Kosiński | D24: Wrocław | E24: 100 | F24: 730700
B25: Dominik | C25: Borkowski | D25: Katowice | E25: 113 | F25: 726622
B26: Tomasz | C26: Nowakowski | D26: Warszawa | E26: 90 | F26: 708533
B27: Jacek | C27: Walczewski | D27: Wrocław | E27: 94 | F27: 699543
B28: Wacław | C28: Laskowski | D28: Łódź | E28: 48 | F28: 697530
B29: Wojciech | C29: Nowak | D29: Wrocław | E29: 99 | F29: 678543
B30: Olgierd | C30: Walewski | D30: Katowice | E30: 40 | F30: 667089
B31: Dominik | C31: Romański | D31: Kraków | E31: 40 | F31: 613184
B32: Hubert | C32: Sosnowski | D32: Katowice | E32: 30 | F32: 565505
B33: Marcin | C33: Laskowski | D33: Poznań | E33: 83 | F33: 543434
B34: Jacek | C34: Romański | D34: Katowice | E34: 115 | F34: 539117

Sheet Formularze 2
E2: TRUE | F2: =IF(E2,2.8535,1) -> 2.8535
B4: Imię | C4: Nazwisko | D4: Miasto | E4: Ilość klientów | F4: Sprzedaż | G4: =IF(E2,"Sprzedaż USD","Srzedaż PLN") -> Sprzedaż USD
B5: Witold | C5: Tomeszewski | D5: Poznań | E5: 116 | F5: 1091244 | G5: =F5/$F$2 -> 382422.9893
B6: Aleksander | C6: Walewski | D6: Kraków | E6: 125 | F6: 1056233 | G6: =F6/$F$2 -> 370153.4957
B7: Antoni | C7: Grzybowki | D7: Łódź | E7: 35 | F7: 1054341 | G7: 369490.4503
B8: Witold | C8: Kurowski | D8: Gdynia | E8: 64 | F8: 1051350 | G8: 368442.2639
B9: Michał | C9: Kaczyński | D9: Szczecin | E9: 68 | F9: 1050736 | G9: 368227.0895
B10: Adam | C10: Kosowski | D10: Gdańsk | E10: 58 | F10: 1024183 | G10: 358921.6751
B11: Wacław | C11: Borkowski | D11: Kraków | E11: 80 | F11: 1022010 | G11: 358160.1542
B12: Wiesiu | C12: Kaczyński | D12: Łódź | E12: 103 | F12: 1021001 | G12: 357806.5534
B13: Paweł | C13: Kurowski | D13: Warszawa | E13: 114 | F13: 1019980 | G13: 357448.7472
B14: Antoni | C14: Sosnowski | D14: Kraków | E14: 32 | F14: 988596 | G14: 346450.3242
B15: Łukasz | C15: Rogowski | D15: Warszawa | E15: 86 | F15: 987345 | G15: 346011.9152
B16: Michał | C16: Szyperski | D16: Olsztyn | E16: 42 | F16: 980514 | G16: 343618.013
B17: Wiesiu | C17: Grzybowki | D17: Poznań | E17: 58 | F17: 894569 | G17: 313498.861
B18: Krzysztof | C18: Szyperski | D18: Warszawa | E18: 75 | F18: 882140 | G18: 309143.1575
B19: Krzysztof | C19: Kowalski | D19: Gdańsk | E19: 96 | F19: 823468 | G19: 288581.7417
B20: Tomasz | C20: Wojski | D20: Gdańsk | E20: 111 | F20: 809054 | G20: 283530.4013
B21: Marcin | C21: Tomeszewski | D21: Łódź | E21: 47 | F21: 803564 | G21: 281606.4482
B22: Przemysław | C22: Nowakowski | D22: Gdańsk | E22: 53 | F22: 786293 | G22: 275553.8812
B23: Adam | C23: Kowalski | D23: Warszawa | E23: 80 | F23: 776146 | G23: 271997.8973
B24: Olgierd | C24: Kosiński | D24: Wrocław | E24: 100 | F24: 730700 | G24: 256071.4912
B25: Dominik | C25: Borkowski | D25: Katowice | E25: 113 | F25: 726622 | G25: 254642.369
B26: Tomasz | C26: Nowakowski | D26: Warszawa | E26: 90 | F26: 708533 | G26: 248303.1365
B27: Jacek | C27: Walczewski | D27: Wrocław | E27: 94 | F27: 699543 | G27: 245152.6196
B28: Wacław | C28: Laskowski | D28: Łódź | E28: 48 | F28: 697530 | G28: 244447.1701
B29: Wojciech | C29: Nowak | D29: Wrocław | E29: 99 | F29: 678543 | G29: 237793.2364
B30: Olgierd | C30: Walewski | D30: Katowice | E30: 40 | F30: 667089 | G30: 233779.2185
B31: Dominik | C31: Romański | D31: Kraków | E31: 40 | F31: 613184 | G31: 214888.3827
B32: Hubert | C32: Sosnowski | D32: Katowice | E32: 30 | F32: 565505 | G32: 198179.4288
B33: Marcin | C33: Laskowski | D33: Poznań | E33: 83 | F33: 543434 | G33: 190444.717
B34: Jacek | C34: Romański | D34: Katowice | E34: 115 | F34: 539117 | G34: 188931.8381

Sheet Formularze 3
B4: styczeń
B5: luty
B6: marzec
B7: kwiecień
B8: maj
B9: czerwiec
B10: lipiec
B11: sierpień
B12: wrzesień
B13: październik
B14: listopad
B15: grudzień
C19: POLSKA | D19: ROSJA | E19: UKRAINA | G19: POLSKA
B20: styczeń | C20: 2313.252256 | D20: 6330.605983 | E20: 2838.01863 | G20: ROSJA
B21: luty | C21: 2067.267905 | D21: 6697.716174 | E21: 2769.898315 | G21: UKRAINA
B22: marzec | C22: 2849.423538 | D22: 6317.791601 | E22: 1840.476862
B23: kwiecień | C23: 2399.894765 | D23: 5853.665313 | E23: 1702.271469
B24: maj | C24: 2577.813063 | D24: 6100.110911 | E24: 1958.931868
B25: czerwiec | C25: 2913.423465 | D25: 6982.486039 | E25: 1813.534716
B26: lipiec | C26: 2943.174731 | D26: 5055.245953 | E26: 2244.869917
B27: sierpień | C27: 2130.358881 | D27: 5245.92942 | E27: 2771.617399
B28: wrzesień | C28: 2465.897258 | D28: 6828.620511 | E28: 2478.5203
B29: październik | C29: 2788.296182 | D29: 6819.80397 | E29: 2038.082346
B30: listopad | C30: 2068.129714 | D30: 5431.608953 | E30: 2440.639551
B31: grudzień | C31: 3052.006511 | D31: 8461.488144 | E31: 2225.056423

Sheet Formularze 4
D3: 3
B4: styczeń | C4: =VLOOKUP(B4,$B$20:$E$31,$D$3+1,0) -> 2838.01863
B5: luty | C5: =VLOOKUP(B5,$B$20:$E$31,$D$3+1,0) -> 2769.898315
B6: marzec | C6: 1840.476862
B7: kwiecień | C7: 1702.271469
B8: maj | C8: 1958.931868
B9: czerwiec | C9: 1813.534716
B10: lipiec | C10: 2244.869917
B11: sierpień | C11: 2771.617399
B12: wrzesień | C12: 2478.5203
B13: październik | C13: 2038.082346
B14: listopad | C14: 2440.639551
B15: grudzień | C15: 2225.056423
C19: POLSKA | D19: ROSJA | E19: UKRAINA | G19: POLSKA
B20: styczeń | C20: 2313.252256 | D20: 6330.605983 | E20: 2838.01863 | G20: ROSJA
B21: luty | C21: 2067.267905 | D21: 6697.716174 | E21: 2769.898315 | G21: UKRAINA
B22: marzec | C22: 2849.423538 | D22: 6317.791601 | E22: 1840.476862
B23: kwiecień | C23: 2399.894765 | D23: 5853.665313 | E23: 1702.271469
B24: maj | C24: 2577.813063 | D24: 6100.110911 | E24: 1958.931868
B25: czerwiec | C25: 2913.423465 | D25: 6982.486039 | E25: 1813.534716
B26: lipiec | C26: 2943.174731 | D26: 5055.245953 | E26: 2244.869917
B27: sierpień | C27: 2130.358881 | D27: 5245.92942 | E27: 2771.617399
B28: wrzesień | C28: 2465.897258 | D28: 6828.620511 | E28: 2478.5203
B29: październik | C29: 2788.296182 | D29: 6819.80397 | E29: 2038.082346
B30: listopad | C30: 2068.129714 | D30: 5431.608953 | E30: 2440.639551
B31: grudzień | C31: 3052.006511 | D31: 8461.488144 | E31: 2225.056423

Sheet Formularze 5
D3: 3
B4: styczeń
B5: luty
B6: marzec
B7: kwiecień
B8: maj
B9: czerwiec
B10: lipiec
B11: sierpień
B12: wrzesień
B13: październik | F13: POLSKA
B14: listopad | F14: ROSJA | G14: zł/rur/hr
B15: grudzień | F15: UKRAINA | G15: USD
C18: '000 dolary | F18: '000 waluta lokalna
C19: POLSKA | D19: ROSJA | E19: UKRAINA | F19: POLSKA | G19: ROSJA | H19: UKRAINA
B20: styczeń | C20: 2313.252256 | D20: 6330.605983 | E20: 2838.01863 | F20: 4716.052319 | G20: 163193.4723 | H20: 14223.34428
B21: luty | C21: 2067.267905 | D21: 6697.716174 | E21: 2769.898315 | F21: 4303.249789 | G21: 170489.1944 | H21: 14094.84449
B22: marzec | C22: 2849.423538 | D22: 6317.791601 | E22: 1840.476862 | F22: 5734.301519 | G22: 162505.658 | H22: 9274.779069
B23: kwiecień | C23: 2399.894765 | D23: 5853.665313 | E23: 1702.271469 | F23: 5072.986299 | G23: 149043.8478 | H23: 8653.65023
B24: maj | C24: 2577.813063 | D24: 6100.110911 | E24: 1958.931868 | F24: 5399.776685 | G24: 157937.6743 | H24: 9894.944455
B25: czerwiec | C25: 2913.423465 | D25: 6982.486039 | E25: 1813.534716 | F25: 6113.018517 | G25: 177790.8126 | H25: 9099.876813
B26: lipiec | C26: 2943.174731 | D26: 5055.245953 | E26: 2244.869917 | F26: 6436.717761 | G26: 131282.8346 | H26: 11273.92409
B27: sierpień | C27: 2130.358881 | D27: 5245.92942 | E27: 2771.617399 | F27: 4500.448326 | G27: 135349.6082 | H27: 13907.91317
B28: wrzesień | C28: 2465.897258 | D28: 6828.620511 | E28: 2478.5203 | F28: 5134.287043 | G28: 175378.9576 | H28: 12401.47201
B29: październik | C29: 2788.296182 | D29: 6819.80397 | E29: 2038.082346 | F29: 5867.167199 | G29: 175083.3261 | H29: 10195.38614
B30: listopad | C30: 2068.129714 | D30: 5431.608953 | E30: 2440.639551 | F30: 4544.693572 | G30: 138506.6153 | H30: 12366.80833
B31: grudzień | C31: 3052.006511 | D31: 8461.488144 | E31: 2225.056423 | F31: 6184.192341 | G31: 218546.9832 | H31: 11233.68256

Sheet Formularze 6
D2: 1
D3: 3
B4: styczeń | C4: =VLOOKUP(B4,$B$20:$H$31,$D$3+1+IF($D$2=1,3,0),0) -> 14223.34428
B5: luty | C5: =VLOOKUP(B5,$B$20:$H$31,$D$3+1+IF($D$2=1,3,0),0) -> 14094.84449
B6: marzec | C6: 9274.779069
B7: kwiecień | C7: 8653.65023
B8: maj | C8: 9894.944455
B9: czerwiec | C9: 9099.876813
B10: lipiec | C10: 11273.92409
B11: sierpień | C11: 13907.91317
B12: wrzesień | C12: 12401.47201
B13: październik | C13: 10195.38614 | F13: POLSKA
B14: listopad | C14: 12366.80833 | F14: ROSJA | G14: zł/rur/hr
B15: grudzień | C15: 11233.68256 | F15: UKRAINA | G15: USD
C18: '000 dolary | F18: '000 waluta lokalna
C19: POLSKA | D19: ROSJA | E19: UKRAINA | F19: POLSKA | G19: ROSJA | H19: UKRAINA
B20: styczeń | C20: 2313.252256 | D20: 6330.605983 | E20: 2838.01863 | F20: 4716.052319 | G20: 163193.4723 | H20: 14223.34428
B21: luty | C21: 2067.267905 | D21: 6697.716174 | E21: 2769.898315 | F21: 4303.249789 | G21: 170489.1944 | H21: 14094.84449
B22: marzec | C22: 2849.423538 | D22: 6317.791601 | E22: 1840.476862 | F22: 5734.301519 | G22: 162505.658 | H22: 9274.779069
B23: kwiecień | C23: 2399.894765 | D23: 5853.665313 | E23: 1702.271469 | F23: 5072.986299 | G23: 149043.8478 | H23: 8653.65023
B24: maj | C24: 2577.813063 | D24: 6100.110911 | E24: 1958.931868 | F24: 5399.776685 | G24: 157937.6743 | H24: 9894.944455
B25: czerwiec | C25: 2913.423465 | D25: 6982.486039 | E25: 1813.534716 | F25: 6113.018517 | G25: 177790.8126 | H25: 9099.876813
B26: lipiec | C26: 2943.174731 | D26: 5055.245953 | E26: 2244.869917 | F26: 6436.717761 | G26: 131282.8346 | H26: 11273.92409
B27: sierpień | C27: 2130.358881 | D27: 5245.92942 | E27: 2771.617399 | F27: 4500.448326 | G27: 135349.6082 | H27: 13907.91317
B28: wrzesień | C28: 2465.897258 | D28: 6828.620511 | E28: 2478.5203 | F28: 5134.287043 | G28: 175378.9576 | H28: 12401.47201
B29: październik | C29: 2788.296182 | D29: 6819.80397 | E29: 2038.082346 | F29: 5867.167199 | G29: 175083.3261 | H29: 10195.38614
B30: listopad | C30: 2068.129714 | D30: 5431.608953 | E30: 2440.639551 | F30: 4544.693572 | G30: 138506.6153 | H30: 12366.80833
B31: grudzień | C31: 3052.006511 | D31: 8461.488144 | E31: 2225.056423 | F31: 6184.192341 | G31: 218546.9832 | H31: 11233.68256

Sheet Formularze 7
G2: Od
C3: Sprzedaż | D3: Nr. | E3: Przedział | G3: Do
B4: styczeń | C4: 831.6380367 | D4: 1
B5: luty | C5: 858.6163554 | D5: 2 | H5: SUMA
B6: marzec | C6: 924.317864 | D6: 3
B7: kwiecień | C7: 940.3648193 | D7: 4
B8: maj | C8: 810.5246583 | D8: 5
B9: czerwiec | C9: 827.7718413 | D9: 6
B10: lipiec | C10: 796.1730079 | D10: 7
B11: sierpień | C11: 919.6929378 | D11: 8
B12: wrzesień | C12: 830.7496166 | D12: 9
B13: październik | C13: 802.2232911 | D13: 10
B14: listopad | C14: 967.2179491 | D14: 11
B15: grudzień | C15: 957.6068687 | D15: 12

Sheet Formularze 8
G2: Od | I2: 6
C3: Sprzedaż | D3: Nr. | E3: Przedział | G3: Do | I3: 11
B4: styczeń | C4: 831.6380367 | D4: 1 | E4: =IF(AND(D4>=$I$2,D4<=$I$3),C4,0) -> 0
B5: luty | C5: 858.6163554 | D5: 2 | E5: 0 | H5: SUMA
B6: marzec | C6: 924.317864 | D6: 3 | E6: 0 | H6: =SUM(E4:E15) -> 5143.828644
B7: kwiecień | C7: 940.3648193 | D7: 4 | E7: 0
B8: maj | C8: 810.5246583 | D8: 5 | E8: 0
B9: czerwiec | C9: 827.7718413 | D9: 6 | E9: 827.7718413
B10: lipiec | C10: 796.1730079 | D10: 7 | E10: 796.1730079
B11: sierpień | C11: 919.6929378 | D11: 8 | E11: 919.6929378
B12: wrzesień | C12: 830.7496166 | D12: 9 | E12: 830.7496166
B13: październik | C13: 802.2232911 | D13: 10 | E13: 802.2232911
B14: listopad | C14: 967.2179491 | D14: 11 | E14: 967.2179491
B15: grudzień | C15: 957.6068687 | D15: 12 | E15: 0

Sheet Formularze 9
E2: Odział | F2: nazwa oddziału | G2: Polska | H2: Udział / Różnica
E3: Ilość Klientów
E4: Sprzedaż
E5: Ilośc Przedstawicieli
E6: Sprzedaż/Przedstawiciela
E7: Sprzedaż/Klienta
B10: Imię | C10: Nazwisko | D10: Miasto | E10: Ilość klientów | F10: Sprzedaż
B11: Witold | C11: Tomeszewski | D11: Poznań | E11: 116 | F11: 1091244
B12: Aleksander | C12: Walewski | D12: Kraków | E12: 125 | F12: 1056233
B13: Antoni | C13: Grzybowki | D13: Łódź | E13: 35 | F13: 1054341
B14: Witold | C14: Kurowski | D14: Gdynia | E14: 64 | F14: 1051350
B15: Michał | C15: Kaczyński | D15: Szczecin | E15: 68 | F15: 1050736
B16: Adam | C16: Kosowski | D16: Gdańsk | E16: 58 | F16: 1024183
B17: Wacław | C17: Borkowski | D17: Kraków | E17: 80 | F17: 1022010
B18: Wiesiu | C18: Kaczyński | D18: Łódź | E18: 103 | F18: 1021001
B19: Paweł | C19: Kurowski | D19: Warszawa | E19: 114 | F19: 1019980
B20: Antoni | C20: Sosnowski | D20: Kraków | E20: 32 | F20: 988596
B21: Łukasz | C21: Rogowski | D21: Warszawa | E21: 86 | F21: 987345
B22: Michał | C22: Szyperski | D22: Olsztyn | E22: 42 | F22: 980514
B23: Wiesiu | C23: Grzybowki | D23: Poznań | E23: 58 | F23: 894569
B24: Krzysztof | C24: Szyperski | D24: Warszawa | E24: 75 | F24: 882140
B25: Krzysztof | C25: Kowalski | D25: Gdańsk | E25: 96 | F25: 823468
B26: Tomasz | C26: Wojski | D26: Gdańsk | E26: 111 | F26: 809054
B27: Marcin | C27: Tomeszewski | D27: Łódź | E27: 47 | F27: 803564
B28: Przemysław | C28: Nowakowski | D28: Gdańsk | E28: 53 | F28: 786293
B29: Adam | C29: Kowalski | D29: Warszawa | E29: 80 | F29: 776146
B30: Olgierd | C30: Kosiński | D30: Wrocław | E30: 100 | F30: 730700
B31: Dominik | C31: Borkowski | D31: Katowice | E31: 113 | F31: 726622
B32: Tomasz | C32: Nowakowski | D32: Warszawa | E32: 90 | F32: 708533
B33: Jacek | C33: Walczewski | D33: Wrocław | E33: 94 | F33: 699543
B34: Wacław | C34: Laskowski | D34: Łódź | E34: 48 | F34: 697530
B35: Wojciech | C35: Nowak | D35: Wrocław | E35: 99 | F35: 678543
B36: Olgierd | C36: Walewski | D36: Katowice | E36: 40 | F36: 667089
B37: Dominik | C37: Romański | D37: Kraków | E37: 40 | F37: 613184
B38: Hubert | C38: Sosnowski | D38: Katowice | E38: 30 | F38: 565505
B39: Marcin | C39: Laskowski | D39: Poznań | E39: 83 | F39: 543434
B40: Jacek | C40: Romański | D40: Katowice | E40: 115 | F40: 539117

Sheet Formularze 10
D2: 7 | E2: Odział | F2: =VLOOKUP(D2,I14:J23,2,0) -> Poznań | G2: Polska | H2: Udział / Różnica
E3: Ilość Klientów | F3: =SUM(G11:G40) -> 257 | G3: =SUM(E11:E40) -> 2295 | H3: =F3/G3 -> 0.1119825708
E4: Sprzedaż | F4: =SUM(H11:H40) -> 2529247 | G4: =SUM(F11:F40) -> 25292567 | H4: =F4/G4 -> 0.09999961649
E5: Ilośc Przedstawicieli | F5: =COUNTIF(G11:G40,">0") -> 3 | G5: 30 | H5: =F5/G5 -> 0.1
E6: Sprzedaż/Przedstawiciela | F6: =F4/F5 -> 843082.3333 | G6: =G4/G5 -> 843085.5667 | H6: =F6/G6-1 -> -3.835118832e-06
E7: Sprzedaż/Klienta | F7: =F4/F3 -> 9841.428016 | G7: =G4/G3 -> 11020.72636 | H7: =F7/G7-1 -> -0.1070073158
G9: SPEŁNIAJĄCE WARUNEK
B10: Imię | C10: Nazwisko | D10: Miasto | E10: Ilość klientów | F10: Sprzedaż | G10: Ilość klientów | H10: Sprzedaż
B11: Witold | C11: Tomeszewski | D11: Poznań | E11: 116 | F11: 1091244 | G11: =IF(D11=$F$2,E11,0) -> 116 | H11: =IF(D11=$F$2,F11,0) -> 1091244
B12: Aleksander | C12: Walewski | D12: Kraków | E12: 125 | F12: 1056233 | G12: =IF(D12=$F$2,E12,0) -> 0 | H12: =IF(D12=$F$2,F12,0) -> 0
B13: Antoni | C13: Grzybowki | D13: Łódź | E13: 35 | F13: 1054341 | G13: 0 | H13: 0
B14: Witold | C14: Kurowski | D14: Gdynia | E14: 64 | F14: 1051350 | G14: 0 | H14: 0 | I14: 1 | J14: Gdańsk
B15: Michał | C15: Kaczyński | D15: Szczecin | E15: 68 | F15: 1050736 | G15: 0 | H15: 0 | I15: 2 | J15: Gdynia
B16: Adam | C16: Kosowski | D16: Gdańsk | E16: 58 | F16: 1024183 | G16: 0 | H16: 0 | I16: 3 | J16: Katowice
B17: Wacław | C17: Borkowski | D17: Kraków | E17: 80 | F17: 1022010 | G17: 0 | H17: 0 | I17: 4 | J17: Kraków
B18: Wiesiu | C18: Kaczyński | D18: Łódź | E18: 103 | F18: 1021001 | G18: 0 | H18: 0 | I18: 5 | J18: Łódź
B19: Paweł | C19: Kurowski | D19: Warszawa | E19: 114 | F19: 1019980 | G19: 0 | H19: 0 | I19: 6 | J19: Olsztyn
B20: Antoni | C20: Sosnowski | D20: Kraków | E20: 32 | F20: 988596 | G20: 0 | H20: 0 | I20: 7 | J20: Poznań
B21: Łukasz | C21: Rogowski | D21: Warszawa | E21: 86 | F21: 987345 | G21: 0 | H21: 0 | I21: 8 | J21: Szczecin
B22: Michał | C22: Szyperski | D22: Olsztyn | E22: 42 | F22: 980514 | G22: 0 | H22: 0 | I22: 9 | J22: Warszawa
B23: Wiesiu | C23: Grzybowki | D23: Poznań | E23: 58 | F23: 894569 | G23: 58 | H23: 894569 | I23: 10 | J23: Wrocław
B24: Krzysztof | C24: Szyperski | D24: Warszawa | E24: 75 | F24: 882140 | G24: 0 | H24: 0
B25: Krzysztof | C25: Kowalski | D25: Gdańsk | E25: 96 | F25: 823468 | G25: 0 | H25: 0
B26: Tomasz | C26: Wojski | D26: Gdańsk | E26: 111 | F26: 809054 | G26: 0 | H26: 0
B27: Marcin | C27: Tomeszewski | D27: Łódź | E27: 47 | F27: 803564 | G27: 0 | H27: 0
B28: Przemysław | C28: Nowakowski | D28: Gdańsk | E28: 53 | F28: 786293 | G28: 0 | H28: 0
B29: Adam | C29: Kowalski | D29: Warszawa | E29: 80 | F29: 776146 | G29: 0 | H29: 0
B30: Olgierd | C30: Kosiński | D30: Wrocław | E30: 100 | F30: 730700 | G30: 0 | H30: 0
B31: Dominik | C31: Borkowski | D31: Katowice | E31: 113 | F31: 726622 | G31: 0 | H31: 0
B32: Tomasz | C32: Nowakowski | D32: Warszawa | E32: 90 | F32: 708533 | G32: 0 | H32: 0
B33: Jacek | C33: Walczewski | D33: Wrocław | E33: 94 | F33: 699543 | G33: 0 | H33: 0
B34: Wacław | C34: Laskowski | D34: Łódź | E34: 48 | F34: 697530 | G34: 0 | H34: 0
B35: Wojciech | C35: Nowak | D35: Wrocław | E35: 99 | F35: 678543 | G35: 0 | H35: 0
B36: Olgierd | C36: Walewski | D36: Katowice | E36: 40 | F36: 667089 | G36: 0 | H36: 0
B37: Dominik | C37: Romański | D37: Kraków | E37: 40 | F37: 613184 | G37: 0 | H37: 0
B38: Hubert | C38: Sosnowski | D38: Katowice | E38: 30 | F38: 565505 | G38: 0 | H38: 0
B39: Marcin | C39: Laskowski | D39: Poznań | E39: 83 | F39: 543434 | G39: 83 | H39: 543434
B40: Jacek | C40: Romański | D40: Katowice | E40: 115 | F40: 539117 | G40: 0 | H40: 0

Sheet Formularze 11
B3: Ilość klientów większa niż | D3: 86
B5: Warunek spełniony przez | D5: ?? | E5: przedstawicieli handlowych
B6: Co stanowi | D6: ?? | E6: ogółu
B9: Imię | C9: Nazwisko | D9: Miasto | E9: Ilość klientów | F9: Sprzedaż
B10: Witold | C10: Tomeszewski | D10: Poznań | E10: 116 | F10: 1091244
B11: Aleksander | C11: Walewski | D11: Kraków | E11: 125 | F11: 1056233
B12: Antoni | C12: Grzybowki | D12: Łódź | E12: 35 | F12: 1054341
B13: Witold | C13: Kurowski | D13: Gdynia | E13: 64 | F13: 1051350
B14: Michał | C14: Kaczyński | D14: Szczecin | E14: 68 | F14: 1050736
B15: Adam | C15: Kosowski | D15: Gdańsk | E15: 58 | F15: 1024183
B16: Wacław | C16: Borkowski | D16: Kraków | E16: 80 | F16: 1022010
B17: Wiesiu | C17: Kaczyński | D17: Łódź | E17: 103 | F17: 1021001
B18: Paweł | C18: Kurowski | D18: Warszawa | E18: 114 | F18: 1019980
B19: Antoni | C19: Sosnowski | D19: Kraków | E19: 32 | F19: 988596
B20: Łukasz | C20: Rogowski | D20: Warszawa | E20: 86 | F20: 987345
B21: Michał | C21: Szyperski | D21: Olsztyn | E21: 42 | F21: 980514
B22: Wiesiu | C22: Grzybowki | D22: Poznań | E22: 58 | F22: 894569
B23: Krzysztof | C23: Szyperski | D23: Warszawa | E23: 75 | F23: 882140
B24: Krzysztof | C24: Kowalski | D24: Gdańsk | E24: 96 | F24: 823468
B25: Tomasz | C25: Wojski | D25: Gdańsk | E25: 111 | F25: 809054
B26: Marcin | C26: Tomeszewski | D26: Łódź | E26: 47 | F26: 803564
B27: Przemysław | C27: Nowakowski | D27: Gdańsk | E27: 53 | F27: 786293
B28: Adam | C28: Kowalski | D28: Warszawa | E28: 80 | F28: 776146
B29: Olgierd | C29: Kosiński | D29: Wrocław | E29: 100 | F29: 730700
B30: Dominik | C30: Borkowski | D30: Katowice | E30: 113 | F30: 726622
B31: Tomasz | C31: Nowakowski | D31: Warszawa | E31: 90 | F31: 708533
B32: Jacek | C32: Walczewski | D32: Wrocław | E32: 94 | F32: 699543
B33: Wacław | C33: Laskowski | D33: Łódź | E33: 48 | F33: 697530
B34: Wojciech | C34: Nowak | D34: Wrocław | E34: 99 | F34: 678543
B35: Olgierd | C35: Walewski | D35: Katowice | E35: 40 | F35: 667089
B36: Dominik | C36: Romański | D36: Kraków | E36: 40 | F36: 613184
B37: Hubert | C37: Sosnowski | D37: Katowice | E37: 30 | F37: 565505
B38: Marcin | C38: Laskowski | D38: Poznań | E38: 83 | F38: 543434
B39: Jacek | C39: Romański | D39: Katowice | E39: 115 | F39: 539117

Sheet Formularze 12
B3: Ilość klientów większa niż | D3: 86
B5: Warunek spełniony przez | D5: =SUBTOTAL(103,C10:C40) -> 12 | E5: przedstawicieli handlowych
B6: Co stanowi | D6: =D5/30 -> 0.4 | E6: ogółu
B9: Imię | C9: Nazwisko | D9: Miasto | E9: Ilość klientów | F9: Sprzedaż | G9: klienci-warunek
B10: Witold | C10: Tomeszewski | D10: Poznań | E10: 116 | F10: 1091244 | G10: =$D$3-E10 -> -30
B11: Aleksander | C11: Walewski | D11: Kraków | E11: 125 | F11: 1056233 | G11: =$D$3-E11 -> -39
B12: Antoni | C12: Grzybowki | D12: Łódź | E12: 35 | F12: 1054341 | G12: 51
B13: Witold | C13: Kurowski | D13: Gdynia | E13: 64 | F13: 1051350 | G13: 22
B14: Michał | C14: Kaczyński | D14: Szczecin | E14: 68 | F14: 1050736 | G14: 18
B15: Adam | C15: Kosowski | D15: Gdańsk | E15: 58 | F15: 1024183 | G15: 28
B16: Wacław | C16: Borkowski | D16: Kraków | E16: 80 | F16: 1022010 | G16: 6
B17: Wiesiu | C17: Kaczyński | D17: Łódź | E17: 103 | F17: 1021001 | G17: -17
B18: Paweł | C18: Kurowski | D18: Warszawa | E18: 114 | F18: 1019980 | G18: -28
B19: Antoni | C19: Sosnowski | D19: Kraków | E19: 32 | F19: 988596 | G19: 54
B20: Łukasz | C20: Rogowski | D20: Warszawa | E20: 86 | F20: 987345 | G20: 0
B21: Michał | C21: Szyperski | D21: Olsztyn | E21: 42 | F21: 980514 | G21: 44
B22: Wiesiu | C22: Grzybowki | D22: Poznań | E22: 58 | F22: 894569 | G22: 28
B23: Krzysztof | C23: Szyperski | D23: Warszawa | E23: 75 | F23: 882140 | G23: 11
B24: Krzysztof | C24: Kowalski | D24: Gdańsk | E24: 96 | F24: 823468 | G24: -10
B25: Tomasz | C25: Wojski | D25: Gdańsk | E25: 111 | F25: 809054 | G25: -25
B26: Marcin | C26: Tomeszewski | D26: Łódź | E26: 47 | F26: 803564 | G26: 39
B27: Przemysław | C27: Nowakowski | D27: Gdańsk | E27: 53 | F27: 786293 | G27: 33
B28: Adam | C28: Kowalski | D28: Warszawa | E28: 80 | F28: 776146 | G28: 6
B29: Olgierd | C29: Kosiński | D29: Wrocław | E29: 100 | F29: 730700 | G29: -14
B30: Dominik | C30: Borkowski | D30: Katowice | E30: 113 | F30: 726622 | G30: -27
B31: Tomasz | C31: Nowakowski | D31: Warszawa | E31: 90 | F31: 708533 | G31: -4
B32: Jacek | C32: Walczewski | D32: Wrocław | E32: 94 | F32: 699543 | G32: -8
B33: Wacław | C33: Laskowski | D33: Łódź | E33: 48 | F33: 697530 | G33: 38
B34: Wojciech | C34: Nowak | D34: Wrocław | E34: 99 | F34: 678543 | G34: -13
B35: Olgierd | C35: Walewski | D35: Katowice | E35: 40 | F35: 667089 | G35: 46
B36: Dominik | C36: Romański | D36: Kraków | E36: 40 | F36: 613184 | G36: 46
B37: Hubert | C37: Sosnowski | D37: Katowice | E37: 30 | F37: 565505 | G37: 56
B38: Marcin | C38: Laskowski | D38: Poznań | E38: 83 | F38: 543434 | G38: 3
B39: Jacek | C39: Romański | D39: Katowice | E39: 115 | F39: 539117 | G39: -29

Sheet Formularze 13
D2: 44
B3: Ilość klientów większa niż | D3: =130-D2 -> 86
B5: Warunek spełniony przez | D5: =SUBTOTAL(103,C10:C40) -> 12 | E5: przedstawicieli handlowych
B6: Co stanowi | D6: =D5/30 -> 0.4 | E6: ogółu
B9: Imię | C9: Nazwisko | D9: Miasto | E9: Ilość klientów | F9: Sprzedaż | G9: klienci-warunek
B10: Witold | C10: Tomeszewski | D10: Poznań | E10: 116 | F10: 1091244 | G10: =$D$3-E10 -> -30
B11: Aleksander | C11: Walewski | D11: Kraków | E11: 125 | F11: 1056233 | G11: =$D$3-E11 -> -39
B12: Antoni | C12: Grzybowki | D12: Łódź | E12: 35 | F12: 1054341 | G12: 51
B13: Witold | C13: Kurowski | D13: Gdynia | E13: 64 | F13: 1051350 | G13: 22
B14: Michał | C14: Kaczyński | D14: Szczecin | E14: 68 | F14: 1050736 | G14: 18
B15: Adam | C15: Kosowski | D15: Gdańsk | E15: 58 | F15: 1024183 | G15: 28
B16: Wacław | C16: Borkowski | D16: Kraków | E16: 80 | F16: 1022010 | G16: 6
B17: Wiesiu | C17: Kaczyński | D17: Łódź | E17: 103 | F17: 1021001 | G17: -17
B18: Paweł | C18: Kurowski | D18: Warszawa | E18: 114 | F18: 1019980 | G18: -28
B19: Antoni | C19: Sosnowski | D19: Kraków | E19: 32 | F19: 988596 | G19: 54
B20: Łukasz | C20: Rogowski | D20: Warszawa | E20: 86 | F20: 987345 | G20: 0
B21: Michał | C21: Szyperski | D21: Olsztyn | E21: 42 | F21: 980514 | G21: 44
B22: Wiesiu | C22: Grzybowki | D22: Poznań | E22: 58 | F22: 894569 | G22: 28
B23: Krzysztof | C23: Szyperski | D23: Warszawa | E23: 75 | F23: 882140 | G23: 11
B24: Krzysztof | C24: Kowalski | D24: Gdańsk | E24: 96 | F24: 823468 | G24: -10
B25: Tomasz | C25: Wojski | D25: Gdańsk | E25: 111 | F25: 809054 | G25: -25
B26: Marcin | C26: Tomeszewski | D26: Łódź | E26: 47 | F26: 803564 | G26: 39
B27: Przemysław | C27: Nowakowski | D27: Gdańsk | E27: 53 | F27: 786293 | G27: 33
B28: Adam | C28: Kowalski | D28: Warszawa | E28: 80 | F28: 776146 | G28: 6
B29: Olgierd | C29: Kosiński | D29: Wrocław | E29: 100 | F29: 730700 | G29: -14
B30: Dominik | C30: Borkowski | D30: Katowice | E30: 113 | F30: 726622 | G30: -27
B31: Tomasz | C31: Nowakowski | D31: Warszawa | E31: 90 | F31: 708533 | G31: -4
B32: Jacek | C32: Walczewski | D32: Wrocław | E32: 94 | F32: 699543 | G32: -8
B33: Wacław | C33: Laskowski | D33: Łódź | E33: 48 | F33: 697530 | G33: 38
B34: Wojciech | C34: Nowak | D34: Wrocław | E34: 99 | F34: 678543 | G34: -13
B35: Olgierd | C35: Walewski | D35: Katowice | E35: 40 | F35: 667089 | G35: 46
B36: Dominik | C36: Romański | D36: Kraków | E36: 40 | F36: 613184 | G36: 46
B37: Hubert | C37: Sosnowski | D37: Katowice | E37: 30 | F37: 565505 | G37: 56
B38: Marcin | C38: Laskowski | D38: Poznań | E38: 83 | F38: 543434 | G38: 3
B39: Jacek | C39: Romański | D39: Katowice | E39: 115 | F39: 539117 | G39: -29
